bitfinex-derivatives/quotes_BTCF0:USTF0_20250324
["timestamp","ask_amount","ask_price","bid_price","bid_amount"]
[1742803828826,0.0641,87191.0,87190.0,0.1146897]
[1742803829029,0.0308,87191.0,87190.0,0.1780297]
[1742803829432,0.1454927,87191.0,87190.0,0.1780297]
[1742803829633,0.1463327,87191.0,87190.0,0.1780297]
[1742803830940,0.1454927,87191.0,87190.0,0.1780297]
[1742803831736,0.1463327,87191.0,87190.0,0.1780297]
[1742803832136,0.1454927,87191.0,87190.0,0.1780297]
[1742803834232,0.2601811,87191.0,87190.0,0.1153297]
[1742803834433,0.37730111,87191.0,87190.0,0.1153297]
[1742803837536,0.37710111,87191.0,87190.0,0.1153297]
[1742803840232,0.40760111,87191.0,87190.0,0.1153297]
[1742803845440,0.40760111,87191.0,87190.0,0.1473297]
[1742803846145,0.44070111,87191.0,87190.0,0.1473297]
[1742803846857,0.44070111,87191.0,87190.0,0.1782297]
[1742803850943,0.44070111,87191.0,87190.0,0.1153297]
[1742803851145,0.44070111,87191.0,87190.0,0.1784297]
[1742803855458,0.44070111,87191.0,87190.0,0.1153297]
[1742803855657,0.44070111,87191.0,87190.0,0.1771897]
[1742803855961,0.44070111,87191.0,87190.0,0.1778697]
[1742803856664,0.44022111,87191.0,87190.0,0.1778697]
[1742803861064,0.32466111,87191.0,87190.0,0.1778697]
[1742803861263,0.23081271,87191.0,87190.0,0.1778697]
[1742803861763,0.34550111,87191.0,87190.0,0.1778697]
[1742803862155,0.23081271,87191.0,87190.0,0.1778697]
[1742803862354,0.34550111,87191.0,87190.0,0.1778697]
[1742803862549,0.23081271,87191.0,87190.0,0.1778697]
[1742803862752,0.29551271,87191.0,87190.0,0.1778697]
[1742803862957,0.26271271,87191.0,87190.0,0.1778697]
[1742803863154,0.26263271,87191.0,87190.0,0.1778697]
[1742803863361,0.29543271,87191.0,87190.0,0.1778697]
[1742803863959,0.34542111,87191.0,87190.0,0.1778697]
[1742803864160,0.41012111,87191.0,87190.0,0.1778697]
[1742803864366,0.34542111,87191.0,87190.0,0.1778697]
[1742803865355,0.40922111,87191.0,87190.0,0.1778697]
[1742803869357,0.34542111,87191.0,87190.0,0.1778697]
[1742803869565,0.41042111,87191.0,87190.0,0.1778697]
[1742803870462,0.41010111,87191.0,87190.0,0.1778697]
[1742803872371,0.29526111,87191.0,87190.0,0.19268181]
[1742803872552,0.41002111,87191.0,87190.0,0.19268181]
[1742803874461,0.11557271,87191.0,87190.0,0.19268181]
[1742803874659,0.23017271,87191.0,87190.0,0.19268181]
[1742803874864,0.11557271,87191.0,87190.0,0.55348181]
[1742803875068,1e-07,87196.0,87195.0,0.1146831]
[1742803875264,1e-07,87196.0,87195.0,0.4754831]
[1742803875467,0.0006801,87196.0,87195.0,0.52249521]
[1742803875668,0.0006801,87196.0,87195.0,0.55579521]
[1742803875867,0.11469149,87196.0,87195.0,0.55519521]
[1742803877171,0.08409649,87196.0,87195.0,0.55519521]
[1742803877766,9e-08,87196.0,87195.0,0.55519521]
[1742803877968,9e-08,87197.0,87196.0,0.1146818]
[1742803878369,9e-08,87197.0,87196.0,0.19189391]
[1742803878574,0.1146849,87197.0,87196.0,0.19189391]
[1742803879371,0.0843763,87197.0,87196.0,0.19189391]
[1742803879569,0.0297568,87197.0,87196.0,0.19189391]
[1742803879873,0.0297568,87197.0,87196.0,0.30189391]
[1742803880176,0.11456,87204.0,87199.0,0.1146779]
[1742803880571,0.10068,87200.0,87199.0,0.1786579]
[1742803880771,0.2153635,87200.0,87199.0,0.1786579]
[1742803880962,0.2153635,87200.0,87199.0,0.19347001]
[1742803881774,0.2153635,87200.0,87199.0,0.20499476]
[1742803883076,0.2153635,87200.0,87199.0,0.19018265]
[1742803884466,0.2153635,87200.0,87199.0,0.20503107]
[1742803885875,0.2153635,87200.0,87199.0,0.20480552]
[1742803886669,0.2153635,87200.0,87199.0,0.19350632]
[1742803887675,0.2153635,87200.0,87199.0,0.20485475]
[1742803888283,0.2153635,87200.0,87199.0,0.56565475]
[1742803888482,0.2146835,87200.0,87199.0,0.56565475]
[1742803893368,0.2146835,87200.0,87199.0,0.55430632]
[1742803893569,0.21528351,87200.0,87199.0,0.55430632]
[1742803894770,0.21528351,87200.0,87199.0,0.56548759]
[1742803895366,0.21528351,87200.0,87199.0,0.5895521]
[1742803895567,0.21528351,87200.0,87199.0,0.57837083]
[1742803895770,0.2146835,87200.0,87199.0,0.57837083]
[1742803896071,0.21528351,87200.0,87199.0,0.57837083]
[1742803896668,0.21528351,87200.0,87199.0,0.58998145]
[1742803896869,0.2146835,87200.0,87199.0,0.58998145]
[1742803897074,0.21528351,87200.0,87199.0,0.58998145]
[1742803897274,0.2146835,87200.0,87199.0,0.58998145]
[1742803897476,0.21528351,87200.0,87199.0,0.58998145]
[1742803897677,0.21528351,87200.0,87199.0,0.57837083]
[1742803898476,0.21528351,87200.0,87199.0,0.58963339]
[1742803903775,0.21528351,87200.0,87199.0,0.56556888]
[1742803904893,0.21528351,87200.0,87199.0,0.55430632]
[1742803906397,0.21528351,87200.0,87199.0,0.5394579]
[1742803907194,0.21528351,87200.0,87199.0,0.55429946]
[1742803909393,0.27918351,87200.0,87199.0,0.55429946]
[1742803909779,0.27918351,87200.0,87199.0,0.5394579]
[1742803910387,0.39386011,87200.0,87199.0,0.36148]
[1742803910586,0.1146923,87188.0,87185.0,0.3608]
[1742803910786,0.1146937,87187.0,87186.0,0.35187995]
[1742803910993,0.1146937,87187.0,87186.0,0.26926495]
[1742803910994,0.2089937,87187.0,87186.0,0.26926495]
[1742803911183,0.2089937,87187.0,87186.0,0.20646495]
[1742803911380,0.32368904,87187.0,87186.0,0.20646495]
[1742803912399,0.33498366,87187.0,87186.0,0.20646495]
[1742803912592,0.33498366,87187.0,87186.0,0.32115995]
[1742803912893,0.33498366,87187.0,87186.0,0.20646495]
[1742803914491,0.33498366,87187.0,87178.0,0.4191]
[1742803914492,0.0573481,87185.0,87181.0,0.27411327]
[1742803914799,0.1147002,87182.0,87181.0,0.27411327]
[1742803914994,0.1147042,87179.0,87178.0,0.4755047]
[1742803915195,0.2332642,87179.0,87178.0,0.5395047]
[1742803915494,0.2955642,87179.0,87178.0,0.4248]
[1742803915883,0.41026546,87179.0,87178.0,0.4248]
[1742803916089,0.41026546,87179.0,87178.0,0.5395055]
[1742803920302,0.41130547,87179.0,87178.0,0.5401055]
[1742803921202,0.44230547,87179.0,87178.0,0.5401055]
[1742803922502,0.17804127,87179.0,87178.0,0.5401055]
[1742803922691,0.11574127,87179.0,87178.0,0.5401055]
[1742803922999,0.23358127,87179.0,87178.0,0.5401055]
[1742803923995,0.26548127,87179.0,87178.0,0.5401055]
[1742803924404,0.29548127,87179.0,87178.0,0.5401055]
[1742803925501,0.23358127,87179.0,87178.0,0.5401055]
[1742803926091,0.11574127,87179.0,87178.0,0.5401055]
[1742803927194,0.11574127,87179.0,87178.0,0.55168633]
[1742803927801,0.00017137,87187.0,87186.0,0.114695]
[1742803928001,0.00017137,87187.0,87186.0,0.573995]
[1742803928405,0.11487855,87187.0,87186.0,0.573995]
[1742803928606,0.11591856,87187.0,87186.0,0.573995]
[1742803929210,0.17751856,87187.0,87186.0,0.573995]
[1742803930009,0.17647855,87187.0,87186.0,0.573995]
[1742803930408,0.11487855,87187.0,87186.0,0.573995]
[1742803930705,0.00017137,87187.0,87186.0,0.573995]
[1742803930905,1e-07,87193.0,87189.0,0.0573451]
[1742803931108,1e-07,87193.0,87192.0,0.4754871]
[1742803931408,1e-07,87193.0,87192.0,0.4903134]
[1742803931613,0.0317,87203.0,87199.0,0.1146779]
[1742803931806,0.0317,87203.0,87199.0,0.1301042]
[1742803932106,0.10104001,87200.0,87199.0,0.5523042]
[1742803932310,0.21571956,87200.0,87199.0,0.5837042]
[1742803932497,0.21571956,87200.0,87199.0,0.5523042]
[1742803938409,0.24761956,87200.0,87199.0,0.5374779]
[1742803938612,0.28071956,87200.0,87199.0,0.5374779]
[1742803939715,0.28071956,87200.0,87199.0,0.55214999]
[1742803940808,0.28071956,87200.0,87199.0,0.5374779]
[1742803948610,0.39539616,87200.0,87199.0,0.1766779]
[1742803949830,0.39539616,87200.0,87199.0,0.0006]
[1742803950511,0.40671276,87200.0,87199.0,0.0006]
[1742803950712,0.40671276,87200.0,87199.0,0.1152779]
[1742803950910,0.21571956,87200.0,87199.0,0.1152779]
[1742803951109,8e-05,87202.0,87201.0,0.1146752]
[1742803951310,0.0004,87240.0,87207.0,0.1146673]
[1742803951311,1e-07,87208.0,87207.0,0.1146673]
[1742803951511,0.0321,87219.0,87218.0,0.1146529]
[1742803951709,0.99192,87220.0,87218.0,0.1146529]
[1742803951710,0.12092,87220.0,87219.0,0.1146516]
[1742803951912,0.0304,87223.0,87221.0,0.1146489]
[1742803951913,0.0321,87222.0,87221.0,0.1146489]
[1742803952113,0.0321,87222.0,87221.0,0.1152889]
[1742803952416,0.0008,87222.0,87221.0,0.1152889]
[1742803952622,0.11465325,87222.0,87221.0,0.1152889]
[1742803953115,0.0625,87225.0,87223.0,0.1146463]
[1742803953317,0.0625,87225.0,87223.0,0.1152463]
[1742803953516,0.175545,87224.0,87223.0,0.1152463]
[1742803953718,0.29091563,87224.0,87223.0,0.1152463]
[1742803953921,0.11577063,87224.0,87223.0,0.1152463]
[1742803954225,0.22969563,87224.0,87223.0,0.1152463]
[1742803954521,0.41141563,87224.0,87223.0,0.0006]
[1742803954816,0.42258928,87224.0,87223.0,0.0006]
[1742803955026,0.30198928,87224.0,87223.0,0.0006]
[1742803955212,0.42254928,87224.0,87223.0,0.0006]
[1742803956116,0.42242928,87224.0,87223.0,0.0006]
[1742803957510,0.1719806,87219.0,87218.0,0.1146527]
[1742803957718,0.1727006,87219.0,87218.0,0.1152527]
[1742803958118,0.2930606,87219.0,87218.0,0.1152527]
[1742803958318,0.40771517,87219.0,87218.0,0.1152527]
[1742803959218,0.40771517,87219.0,87218.0,0.1146527]
[1742803959723,0.43921517,87219.0,87218.0,0.1146527]
[1742803960616,0.43921517,87219.0,87218.0,0.1152527]
[1742803962931,0.43921517,87219.0,87218.0,0.1152529]
[1742803963519,0.43921517,87219.0,87218.0,0.1466529]
[1742803963721,0.43921517,87219.0,87218.0,0.0006]
[1742803964028,0.1146568,87215.0,87214.0,0.1146576]
[1742803964227,0.1153768,87215.0,87214.0,0.0006]
[1742803964431,0.1784768,87215.0,87214.0,0.0006]
[1742803964818,0.29313137,87215.0,87214.0,0.0006]
[1742803965220,0.29313137,87215.0,87214.0,0.1152581]
[1742803965830,0.29313137,87215.0,87214.0,0.1477581]
[1742803966236,0.26053137,87215.0,87214.0,0.1477581]
[1742803966523,0.23003137,87215.0,87214.0,0.1477581]
[1742803967325,0.11537457,87215.0,87214.0,0.1477581]
[1742803967527,0.23493457,87215.0,87214.0,0.1477581]
[1742803967728,0.34959137,87215.0,87214.0,0.1477581]
[1742803967933,0.11537457,87215.0,87214.0,0.1477581]
[1742803968116,0.11465457,87215.0,87214.0,0.1477581]
[1742803969129,0.1146514,87220.0,87219.0,0.1146503]
[1742803969334,0.1154114,87220.0,87219.0,0.4754503]
[1742803969634,0.1154114,87220.0,87219.0,0.4760903]
[1742803969827,0.23007123,87220.0,87219.0,0.5075903]
[1742803970023,0.26157123,87220.0,87219.0,0.5376903]
[1742803970335,0.29247123,87220.0,87219.0,0.42304]
[1742803970628,0.29247123,87220.0,87219.0,0.06224]
[1742803970827,0.29247123,87220.0,87219.0,0.0616]
[1742803971028,0.41171123,87220.0,87219.0,0.06228]
[1742803973224,0.01157365,87224.0,87219.0,0.06228]
[1742803973225,0.0004,87224.0,87219.0,0.06228]
[1742803973535,0.0029,87226.0,87225.0,0.1146437]
[1742803973831,0.00298,87226.0,87225.0,0.18837244]
[1742803974334,0.11763325,87226.0,87225.0,0.18837244]
[1742803976641,0.11827325,87226.0,87225.0,0.18837244]
[1742803977538,0.11763325,87226.0,87225.0,0.18837244]
[1742803977743,0.11827325,87226.0,87225.0,0.18837244]
[1742803978752,0.11763325,87226.0,87225.0,0.18837244]
[1742803979040,0.11823326,87226.0,87225.0,0.18837244]
[1742803980030,0.11823326,87226.0,87225.0,0.1766837]
[1742803980235,0.23287566,87226.0,87225.0,0.1766837]
[1742803980635,0.29507566,87226.0,87225.0,0.1766837]
[1742803981438,0.29507566,87226.0,87225.0,0.06204]
[1742803981643,0.29507566,87226.0,87225.0,0.00064]
[1742803982048,0.3065412,87226.0,87225.0,0.00064]
[1742803982847,0.1146489,87221.0,87220.0,0.0647]
[1742803983143,0.2337289,87221.0,87220.0,0.00072]
[1742803983343,0.1146595,87213.0,87212.0,0.0647]
[1742803983538,0.23365951,87213.0,87212.0,0.06538]
[1742803983740,0.33075951,87213.0,87212.0,0.06538]
[1742803984148,0.44541145,87213.0,87212.0,0.1800408]
[1742803984848,0.44541145,87213.0,87212.0,0.06538]
[1742803985241,0.41441145,87213.0,87212.0,0.06538]
[1742803985448,0.44551145,87213.0,87212.0,0.06538]
[1742803986336,0.45672221,87213.0,87212.0,0.06538]
[1742803986538,0.44551145,87213.0,87212.0,0.06538]
[1742803988158,0.1146621,87211.0,87210.0,0.00017204]
[1742803988356,0.11526211,87211.0,87210.0,0.00017204]
[1742803988558,0.17996211,87211.0,87210.0,0.00017204]
[1742803988944,0.29462457,87211.0,87210.0,0.00081204]
[1742803989452,0.29462457,87211.0,87210.0,0.00017204]
[1742803990357,0.29462457,87211.0,87210.0,0.00081204]
[1742803992052,0.29462457,87211.0,87210.0,0.00017204]
[1742803994445,0.29462457,87211.0,87200.0,0.0325]
[1742803994446,0.1146752,87201.0,87200.0,0.0325]
[1742803994652,0.2654352,87201.0,87200.0,0.03322]
[1742803994848,0.2975352,87201.0,87200.0,0.03322]
[1742803995042,0.3305352,87201.0,87200.0,0.1153966]
[1742803995247,0.44520029,87201.0,87200.0,0.1153966]
[1742803995447,0.44520029,87201.0,87200.0,0.1146766]
[1742803995647,0.1146766,87200.0,87199.0,0.00045872]
[1742803995848,0.1146858,87193.0,87192.0,0.03147204]
[1742803996049,0.2328858,87193.0,87192.0,0.03215204]
[1742803996243,0.5936858,87193.0,87192.0,0.03215204]
[1742803996454,0.70837456,87193.0,87192.0,0.03147204]
[1742803996645,0.70837456,87193.0,87192.0,0.00085204]
[1742803996852,0.1146976,87184.0,87168.0,0.418159]
[1742803997051,0.2328976,87184.0,87183.0,0.0010988]
[1742803997250,0.24222437,87184.0,87183.0,0.0010988]
[1742803997449,0.31267397,87184.0,87183.0,0.0010988]
[1742803997661,0.42737457,87184.0,87183.0,0.0010988]
[1742803997958,0.41862497,87184.0,87183.0,0.0010988]
[1742803998351,0.41862497,87184.0,87183.0,0.0040988]
[1742803998661,0.41862497,87184.0,87183.0,0.0060988]
[1742804000960,0.41862497,87184.0,87183.0,0.1207977]
[1742804001550,0.30114497,87184.0,87183.0,0.0060988]
[1742804001763,0.41886497,87184.0,87183.0,0.0060988]
[1742804002347,0.41886497,87184.0,87183.0,0.0678988]
[1742804002950,0.4075382,87184.0,87183.0,0.0678988]
[1742804003964,0.4075382,87184.0,87183.0,0.1825977]
[1742804008862,0.4075382,87184.0,87183.0,0.1805977]
[1742804010269,0.4095382,87184.0,87183.0,0.1775977]
[1742804012175,0.4095382,87184.0,87183.0,0.0628988]
[1742804012662,0.4095382,87184.0,87183.0,0.1775977]
[1742804014174,0.4075382,87184.0,87183.0,0.1775977]
[1742804014375,0.4095382,87184.0,87183.0,0.1775977]
[1742804014759,0.4075382,87184.0,87183.0,0.1775977]
[1742804014959,0.4095382,87184.0,87183.0,0.1775977]
[1742804017268,0.4075382,87184.0,87183.0,0.1775977]
[1742804017480,0.4095382,87184.0,87183.0,0.1775977]
[1742804019170,0.4095382,87184.0,87183.0,0.1775977]
[1742804019366,0.4095382,87184.0,87183.0,0.0628988]
[1742804019567,0.4095382,87184.0,87183.0,0.0622588]
[1742804020077,0.4095382,87184.0,87183.0,0.0628988]
[1742804020679,0.4095382,87184.0,87183.0,0.0622588]
[1742804020866,0.4075382,87184.0,87183.0,0.0622588]
[1742804021063,0.4095382,87184.0,87183.0,0.0628988]
[1742804021675,0.4095382,87184.0,87183.0,0.0622588]
[1742804021874,0.4095382,87184.0,87183.0,0.0628988]
[1742804022475,0.4095382,87184.0,87183.0,0.0622588]
[1742804022770,0.4095382,87184.0,87183.0,0.0629788]
[1742804022969,0.2918182,87184.0,87183.0,0.0622588]
[1742804023166,0.5734967,87183.0,87155.0,0.3608]
[1742804023379,0.1147187,87168.0,87167.0,0.11876889]
[1742804023677,0.2316787,87168.0,87167.0,0.11876889]
[1742804023881,0.4090793,87168.0,87167.0,0.11876889]
[1742804024784,0.4090793,87168.0,87167.0,0.11976889]
[1742804028282,0.42051574,87168.0,87167.0,0.11976889]
[1742804028482,0.42051574,87168.0,87167.0,0.18226889]
[1742804031988,0.35781574,87168.0,87167.0,0.18226889]
[1742804032486,0.35781574,87168.0,87167.0,0.19679325]
[1742804032487,0.3463793,87168.0,87167.0,0.19679325]
[1742804033178,0.4101793,87168.0,87167.0,0.19679325]
[1742804033580,0.4101793,87168.0,87167.0,0.18226889]
[1742804034583,0.3051789,87168.0,87167.0,0.18226889]
[1742804034788,0.4208189,87168.0,87167.0,0.18226889]
[1742804044398,0.1791406,87168.0,87167.0,0.18226889]
[1742804044599,0.1147006,87168.0,87167.0,0.18226889]
[1742804044792,0.1153806,87168.0,87167.0,0.18226889]
[1742804045105,0.1153806,87168.0,87167.0,0.19690917]
[1742804045505,0.1153806,87168.0,87167.0,0.18226889]
[1742804046807,0.1153806,87168.0,87167.0,0.19689718]
[1742804047709,0.2300993,87168.0,87167.0,0.19689718]
[1742804048996,0.1153806,87168.0,87167.0,0.19689718]
[1742804049405,0.0573403,87197.0,87167.0,1.13207718]
[1742804049406,0.3608,87197.0,87167.0,1.13207718]
[1742804049709,0.00076,87194.0,87193.0,0.4754858]
[1742804049907,0.1722957,87204.0,87197.0,0.0573399]
[1742804050208,0.1789726,87203.0,87202.0,0.4754726]
[1742804050402,0.29429426,87203.0,87202.0,0.4761126]
[1742804051109,0.40925426,87203.0,87202.0,0.4761126]
[1742804054103,0.44055426,87203.0,87202.0,0.4761126]
[1742804057113,0.44155426,87203.0,87202.0,0.4761126]
[1742804058320,0.41025426,87203.0,87202.0,0.4761126]
[1742804059410,0.18062166,87203.0,87202.0,0.4761126]
[1742804059720,0.29550166,87203.0,87202.0,0.4761126]
[1742804061505,0.29550166,87203.0,87202.0,0.5074126]
[1742804062113,0.18062166,87203.0,87202.0,0.5074126]
[1742804062310,0.14862166,87203.0,87202.0,0.5074126]
[1742804062908,0.26329426,87203.0,87202.0,0.5074126]
[1742804063514,0.26329426,87203.0,87202.0,0.5384126]
[1742804065214,0.29519426,87203.0,87202.0,0.5384126]
[1742804070121,0.29519426,87203.0,87202.0,0.5696126]
[1742804074124,0.29519426,87203.0,87202.0,0.36144]
[1742804074325,0.29519426,87203.0,87202.0,0.00064]
[1742804074526,0.1146818,87196.0,87195.0,0.1146827]
[1742804074726,0.1146818,87196.0,87191.0,0.3608]
[1742804074727,0.1146831,87195.0,87191.0,0.3608]
[1742804074927,0.1805831,87195.0,87191.0,0.3608]
[1742804075112,0.2133831,87195.0,87191.0,0.3608]
[1742804075312,0.114691,87189.0,87188.0,0.1146919]
[1742804075517,0.229571,87189.0,87188.0,0.1146919]
[1742804075824,0.114695,87186.0,87185.0,0.4191]
[1742804076019,0.114695,87186.0,87185.0,0.5337962]
[1742804076329,0.178495,87186.0,87185.0,0.5337962]
[1742804076633,0.29319297,87186.0,87185.0,0.4191]
[1742804076821,0.29319297,87186.0,87185.0,0.5337963]
[1742804077334,0.29119297,87186.0,87185.0,0.5337963]
[1742804077626,0.1147002,87182.0,87180.0,0.3608]
[1742804077832,0.2933815,87181.0,87180.0,0.3608]
[1742804078412,0.40807947,87181.0,87180.0,0.3608]
[1742804078618,0.40807947,87181.0,87180.0,0.4755029]
[1742804079421,0.41007947,87181.0,87180.0,0.4755029]
[1742804080323,0.41007947,87181.0,87180.0,0.3608]
[1742804080520,0.41071947,87181.0,87180.0,0.36144]
[1742804080726,0.41071947,87181.0,87180.0,0.4761429]
[1742804081632,0.41071947,87181.0,87180.0,0.5396429]
[1742804081829,0.41071947,87181.0,87180.0,0.55128962]
[1742804082135,0.40871947,87181.0,87180.0,0.5396429]
[1742804082822,0.40971947,87181.0,87180.0,0.5396429]
[1742804083824,0.29501797,87181.0,87180.0,0.5396429]
[1742804084223,0.40871947,87181.0,87180.0,0.5396429]
[1742804084424,0.29383947,87181.0,87180.0,0.5396429]
[1742804084633,0.40871947,87181.0,87180.0,0.5396429]
[1742804085721,0.29401797,87181.0,87180.0,0.5396429]
[1742804085929,0.17913797,87181.0,87180.0,0.5396429]
[1742804086133,0.29401797,87181.0,87180.0,0.5396429]
[1742804087429,0.11533797,87181.0,87180.0,0.5396429]
[1742804087625,0.0629,87188.0,87187.0,0.1146937]
[1742804087825,0.36128,87208.0,87207.0,0.1146673]
[1742804088036,0.00112,87208.0,87207.0,0.4761073]
[1742804088233,0.00112,87208.0,87207.0,0.5085073]
[1742804088620,0.11582454,87208.0,87207.0,0.5085073]
[1742804088825,0.23049054,87208.0,87207.0,0.5085073]
[1742804089136,0.11782454,87208.0,87207.0,0.5085073]
[1742804089331,0.11782454,87208.0,87207.0,0.5409073]
[1742804089534,0.11774454,87208.0,87207.0,0.5409073]
[1742804089723,0.23241054,87208.0,87207.0,0.5409073]
[1742804089929,0.29531054,87208.0,87207.0,0.36144]
[1742804090124,0.32701054,87208.0,87207.0,0.00064]
[1742804090325,0.1146739,87202.0,87201.0,0.1720109]
[1742804090525,0.1143939,87202.0,87201.0,0.00068]
[1742804090826,0.1133939,87202.0,87201.0,0.00068]
[1742804091033,0.22806293,87202.0,87201.0,0.1153552]
[1742804091433,0.29136293,87202.0,87201.0,0.1163552]
[1742804092424,0.29136293,87202.0,87201.0,0.1153552]
[1742804092739,0.29136293,87202.0,87201.0,0.1459552]
[1742804093733,0.29136293,87202.0,87201.0,0.1790552]
[1742804094230,0.29136293,87202.0,87201.0,0.1153552]
[1742804094445,0.29236293,87202.0,87201.0,0.1153552]
[1742804095042,0.29136293,87202.0,87201.0,0.1484552]
[1742804095245,0.29236293,87202.0,87201.0,0.1484552]
[1742804095443,0.29236293,87202.0,87201.0,0.1153552]
[1742804095842,0.29236293,87202.0,87201.0,0.00068]
[1742804096843,0.1146766,87200.0,87199.0,0.00017204]
[1742804097146,0.23011661,87200.0,87199.0,0.00017204]
[1742804097442,0.29521661,87200.0,87199.0,0.00017204]
[1742804097641,0.40989353,87200.0,87199.0,0.00017204]
[1742804100142,0.41089353,87200.0,87199.0,0.00017204]
[1742804100447,0.001,87200.0,87199.0,0.11484994]
[1742804100652,0.00164,87200.0,87199.0,0.14802994]
[1742804100940,0.0004,87208.0,87207.0,0.1146673]
[1742804101130,0.00124,87208.0,87207.0,0.4763073]
[1742804101335,0.00124,87208.0,87207.0,0.5692073]
[1742804101535,0.03344,87208.0,87207.0,0.58052761]
[1742804101735,0.14811955,87208.0,87207.0,0.5692073]
[1742804101938,0.18041955,87208.0,87207.0,0.5692073]
[1742804102137,0.14821955,87208.0,87207.0,0.5692073]
[1742804102347,0.26288555,87208.0,87207.0,0.5692073]
[1742804102549,0.29508555,87208.0,87207.0,0.5692073]
[1742804102847,0.18041955,87208.0,87207.0,0.5692073]
[1742804103029,0.14811955,87208.0,87207.0,0.5692073]
[1742804104349,0.17841955,87208.0,87207.0,0.5702073]
[1742804104734,0.14811955,87208.0,87207.0,0.5702073]
[1742804105135,0.11591955,87208.0,87207.0,0.5702073]
[1742804105436,0.22991955,87208.0,87207.0,0.5702073]
[1742804105636,0.23075955,87208.0,87207.0,0.5702073]
[1742804107442,0.11591955,87208.0,87207.0,0.5702073]
[1742804107744,0.11507955,87208.0,87207.0,0.5702073]
[1742804107946,0.0029,87226.0,87223.0,0.1146463]
[1742804108241,0.0029,87226.0,87223.0,0.4762863]
[1742804108446,0.0029,87226.0,87223.0,0.5081863]
[1742804108652,0.0029,87226.0,87223.0,0.5389863]
[1742804109247,0.0024,87224.0,87223.0,0.5389863]
[1742804110944,0.344533,87224.0,87223.0,0.36164]
[1742804111136,0.34741301,87224.0,87223.0,0.4762863]
[1742804111332,0.41051301,87224.0,87223.0,0.4762863]
[1742804111555,0.41051301,87224.0,87223.0,0.36164]
[1742804116449,0.41051301,87224.0,87223.0,0.00084]
[1742804116759,0.1146476,87222.0,87221.0,0.0322]
[1742804116943,0.1154876,87222.0,87221.0,0.03304]
[1742804117253,0.1791876,87222.0,87221.0,0.03304]
[1742804117459,0.2938356,87222.0,87221.0,0.03304]
[1742804118243,0.2958356,87222.0,87221.0,0.03304]
[1742804118642,0.30728444,87222.0,87221.0,0.03304]
[1742804120246,0.30728444,87222.0,87221.0,0.00084]
[1742804122449,0.2958356,87222.0,87221.0,0.00084]
[1742804123549,0.2958356,87222.0,87221.0,0.03274]
[1742804123756,0.4106356,87222.0,87221.0,0.03274]
[1742804124641,0.42218289,87222.0,87221.0,0.03274]
[1742804126655,0.42218289,87222.0,87221.0,0.00084]
[1742804127652,0.114666,87208.0,87203.0,0.4191]
[1742804127851,0.114666,87208.0,87207.0,0.3614]
[1742804127852,0.229466,87208.0,87207.0,0.3614]
[1742804128151,0.230106,87208.0,87207.0,0.3614]
[1742804128456,0.40605663,87208.0,87207.0,0.3614]
[1742804128942,0.40605663,87208.0,87207.0,0.3624]
[1742804129755,0.40605663,87208.0,87207.0,0.0016]
[1742804129960,0.40605663,87208.0,87207.0,0.0026]
[1742804131450,0.1146766,87200.0,87199.0,0.00017204]
[1742804131649,0.00076,87200.0,87199.0,0.11548994]
[1742804131859,0.1457,87200.0,87199.0,0.47632994]
[1742804132066,0.2603766,87200.0,87199.0,0.53822994]
[1742804132245,0.37580563,87200.0,87199.0,0.53822994]
[1742804132858,0.40700563,87200.0,87199.0,0.53822994]
[1742804133960,0.29220563,87200.0,87199.0,0.53822994]
[1742804134163,0.40700563,87200.0,87199.0,0.53922994]
[1742804134748,0.40700563,87200.0,87199.0,0.53822994]
[1742804136047,0.11642903,87200.0,87199.0,0.53822994]
[1742804136450,0.11642903,87200.0,87199.0,0.54992138]
[1742804137050,0.23110563,87200.0,87199.0,0.53822994]
[1742804138364,0.23010563,87200.0,87199.0,0.53822994]
[1742804139758,0.23010563,87200.0,87199.0,0.17742994]
[1742804139965,0.23010563,87200.0,87199.0,0.53822994]
[1742804141266,0.29100563,87200.0,87199.0,0.53822994]
[1742804145669,0.29100563,87200.0,87199.0,0.17742994]
[1742804145873,0.29100563,87200.0,87199.0,0.53822994]
[1742804147666,0.29200563,87200.0,87199.0,0.53822994]
[1742804150473,0.29100563,87200.0,87199.0,0.53822994]
[1742804151473,0.29100563,87200.0,87199.0,0.42355204]
[1742804152675,0.1146792,87198.0,87197.0,0.3608]
[1742804152975,0.11563921,87198.0,87197.0,0.36148]
[1742804153275,0.29419921,87198.0,87197.0,0.36148]
[1742804153479,0.40887876,87198.0,87197.0,0.00068]
[1742804156676,0.40887876,87198.0,87191.0,0.01130795]
[1742804156677,0.1146871,87192.0,87191.0,0.01130795]
[1742804156882,0.1146897,87190.0,87189.0,0.36097204]
[1742804157182,0.11572971,87190.0,87189.0,0.36157204]
[1742804157482,0.29301189,87190.0,87189.0,0.36157204]
[1742804157874,0.29201189,87190.0,87189.0,0.50926304]
[1742804158071,0.17832219,87190.0,87189.0,0.50926304]
[1742804158275,0.17732219,87190.0,87189.0,0.50926304]
[1742804158474,0.17804218,87190.0,87189.0,0.50926304]
[1742804158775,0.29273188,87190.0,87189.0,0.51026304]
[1742804158970,0.29273188,87190.0,87189.0,0.51126304]
[1742804159168,0.29273188,87190.0,87189.0,0.52243819]
[1742804160381,0.17804218,87190.0,87189.0,0.52243819]
[1742804160580,0.29273188,87190.0,87189.0,0.52243819]
[1742804162378,0.17804218,87190.0,87189.0,0.52243819]
[1742804162683,0.11467,87205.0,87204.0,0.0573343]
[1742804162878,0.22943,87205.0,87204.0,0.0580543]
[1742804163085,0.23015,87205.0,87204.0,0.0580543]
[1742804163382,0.3448427,87205.0,87204.0,0.0580543]
[1742804163884,0.3458427,87205.0,87204.0,0.00072]
[1742804164083,0.4101427,87205.0,87204.0,0.00072]
[1742804164268,0.4101427,87205.0,87197.0,0.0624]
[1742804164269,0.1146792,87198.0,87197.0,0.1770798]
[1742804164472,0.1146805,87197.0,87196.0,0.4754809]
[1742804164674,0.06302,87197.0,87196.0,0.4762409]
[1742804164873,0.1769805,87197.0,87196.0,0.4762409]
[1742804165074,0.29238268,87197.0,87196.0,0.5084409]
[1742804166185,0.17770218,87197.0,87196.0,0.5084409]
[1742804166378,0.17698218,87197.0,87196.0,0.5084409]
[1742804166684,0.17770218,87197.0,87196.0,0.5084409]
[1742804167077,0.002,87205.0,87202.0,0.0573369]
[1742804167379,0.00296001,87205.0,87204.0,0.4754713]
[1742804167586,0.002,87205.0,87204.0,0.5094913]
[1742804167783,0.0626,87207.0,87206.0,0.1146687]
[1742804168078,0.0626,87207.0,87206.0,0.1156287]
[1742804168287,0.0626,87207.0,87206.0,0.1487287]
[1742804168488,0.06356001,87207.0,87206.0,0.1487287]
[1742804168680,0.0626,87207.0,87206.0,0.1487287]
[1742804169186,0.06356001,87207.0,87206.0,0.16092303]
[1742804169374,0.0626,87207.0,87206.0,0.16092303]
[1742804169569,0.06352,87207.0,87206.0,0.16092303]